bitfinex/quotes_BTCUSD_20250718
["timestamp","ask_amount","ask_price","bid_price","bid_amount"]
[1752829626627,0.46533417,118690.0,118680.0,1.12728285]
[1752829626848,0.29682798,118690.0,118680.0,1.12728285]
[1752829627070,0.27997829,118690.0,118680.0,1.12943285]
[1752829627261,0.45690936,118690.0,118680.0,1.12943285]
[1752829627794,0.27997829,118690.0,118680.0,1.12943285]
[1752829628009,0.27155362,118690.0,118680.0,1.21519247]
[1752829628206,0.26939362,118690.0,118680.0,1.68013747]
[1752829628422,0.26634362,118690.0,118680.0,1.68013747]
[1752829630051,0.26634362,118690.0,118680.0,1.6548607]
[1752829630052,0.4516995,118690.0,118680.0,1.6548607]
[1752829630253,0.46533459,118690.0,118680.0,1.6548607]
[1752829630466,0.26654362,118690.0,118680.0,1.67171188]
[1752829630671,0.26654362,118690.0,118680.0,1.20676688]
[1752829630899,0.16563015,118690.0,118680.0,1.20676688]
[1752829631070,0.23484362,118690.0,118680.0,1.20676688]
[1752829631359,0.13513015,118690.0,118680.0,1.67171188]
[1752829631574,0.13505015,118690.0,118680.0,1.67429188]
[1752829632436,0.20426362,118690.0,118680.0,0.74440188]
[1752829632645,0.20426362,118690.0,118680.0,1.67429188]
[1752829633065,0.20426362,118690.0,118680.0,1.67171188]
[1752829633277,0.13505015,118690.0,118680.0,1.67171188]
[1752829633530,0.20426362,118690.0,118680.0,1.67171188]
[1752829633941,0.13505015,118690.0,118680.0,1.67171188]
[1752829635018,0.20426362,118690.0,118680.0,1.67171188]
[1752829635792,0.23486362,118690.0,118680.0,1.67171188]
[1752829637019,0.13505015,118690.0,118680.0,1.67171188]
[1752829637181,0.20426362,118690.0,118680.0,1.67429188]
[1752829637553,0.20426362,118690.0,118680.0,1.67171188]
[1752829637769,0.13505015,118690.0,118680.0,1.67171188]
[1752829638056,0.20426362,118690.0,118680.0,1.67171188]
[1752829638378,0.13505015,118690.0,118680.0,1.67171188]
[1752829638620,0.23576362,118690.0,118680.0,1.67171188]
[1752829640956,0.20426362,118690.0,118680.0,1.67171188]
[1752829641474,0.23616362,118690.0,118680.0,1.67171188]
[1752829641985,0.26636362,118690.0,118680.0,1.67171188]
[1752829642385,0.13236362,118690.0,118680.0,1.646533]
[1752829642539,0.23592362,118690.0,118680.0,1.646533]
[1752829642905,0.23592362,118690.0,118680.0,0.716643]
[1752829643054,0.26902362,118690.0,118680.0,1.646533]
[1752829645222,0.26902362,118690.0,118680.0,1.67243252]
[1752829645843,0.21902362,118690.0,118680.0,1.67243252]
[1752829646403,0.14981015,118690.0,118680.0,1.67243252]
[1752829646646,0.21902362,118690.0,118680.0,1.67243252]
[1752829647507,0.10231347,118690.0,118680.0,1.67243252]
[1752829647714,0.23595347,118690.0,118680.0,1.67243252]
[1752829647937,0.16674,118690.0,118680.0,1.67243252]
[1752829648181,0.23595347,118690.0,118680.0,1.67243252]
[1752829648757,0.16674,118690.0,118680.0,1.67243252]
[1752829648999,0.23595347,118690.0,118680.0,0.74254252]
[1752829649231,0.23595347,118690.0,118680.0,1.67243252]
[1752829649538,0.16674,118690.0,118680.0,1.67243252]
[1752829649746,0.23595347,118690.0,118680.0,1.67243252]
[1752829651077,0.23591347,118690.0,118680.0,1.67243252]
[1752829651287,0.1667,118690.0,118680.0,1.67243252]
[1752829651488,0.23583347,118690.0,118680.0,1.67243252]
[1752829652030,0.40934966,118690.0,118680.0,0.6315062]
[1752829652244,0.47304974,118690.0,118680.0,0.92578074]
[1752829652471,0.464625,118690.0,118680.0,0.4524098]
[1752829652674,0.45620005,118690.0,118680.0,0.4524098]
[1752829652881,0.45620005,118690.0,118680.0,0.1124098]
[1752829653089,0.33895575,118690.0,118680.0,0.08651028]
[1752829653313,0.44805489,118690.0,118680.0,0.08651028]
[1752829653520,0.44801489,118690.0,118680.0,0.08651028]
[1752829654150,0.44801489,118690.0,118680.0,0.001]
[1752829654998,0.91295989,118690.0,118680.0,0.001]
[1752829655205,0.99871951,118690.0,118680.0,0.001]
[1752829656040,0.86499951,118690.0,118680.0,0.001]
[1752829656282,0.99871951,118690.0,118680.0,0.001]
[1752829656869,0.91295989,118690.0,118680.0,0.001]
[1752829658424,0.44809489,118690.0,118680.0,0.001]
[1752829658626,0.44909489,118690.0,118680.0,0.001]
[1752829658853,0.91403989,118690.0,118680.0,0.001]
[1752829659053,0.44909489,118690.0,118680.0,0.001]
[1752829659257,0.91403989,118690.0,118680.0,0.001]
[1752829659609,0.44909489,118690.0,118680.0,0.001]
[1752829659811,0.44809489,118690.0,118680.0,0.001]
[1752829660017,0.24988754,118670.0,118660.0,0.464945]
[1752829660216,0.45795101,118670.0,118660.0,0.464945]
[1752829661207,0.16853297,118680.0,118660.0,1.53707601]
[1752829661208,0.04953588,118680.0,118660.0,1.53707601]
[1752829661487,0.04953588,118690.0,118680.0,0.50852039]
[1752829661727,0.00842481,118690.0,118680.0,1.63707699]
[1752829661937,0.14246467,118690.0,118680.0,1.17213199]
[1752829662235,0.05796055,118690.0,118680.0,1.17213199]
[1752829662461,0.18357588,118690.0,118680.0,1.17213199]
[1752829662807,0.18357588,118690.0,118680.0,0.70718699]
[1752829663000,0.18357588,118690.0,118680.0,1.17213199]
[1752829663342,0.13404,118690.0,118680.0,1.17213199]
[1752829663504,0.18457588,118690.0,118680.0,1.17213199]
[1752829664713,0.13696,118690.0,118680.0,1.63965699]
[1752829665024,0.137,118690.0,118680.0,0.74006699]
[1752829665263,0.13704,118690.0,118680.0,1.66995699]
[1752829665834,0.18657588,118690.0,118680.0,1.66995699]
[1752829666277,0.13704,118690.0,118680.0,1.66995699]
[1752829667721,0.18657588,118690.0,118680.0,1.66995699]
[1752829668001,0.18657588,118690.0,118680.0,1.20501199]
[1752829669272,0.13704,118690.0,118680.0,1.20501199]
[1752829671250,0.18657588,118690.0,118680.0,1.20501199]
[1752829672081,0.13704,118690.0,118680.0,1.66995699]
[1752829672391,0.003,118690.0,118680.0,1.66995699]
[1752829672622,0.003,118690.0,118680.0,1.70165699]
[1752829673058,0.13688,118690.0,118680.0,1.70165699]
[1752829673485,0.13388,118690.0,118680.0,1.70165699]
[1752829673677,0.13488,118690.0,118680.0,1.70465699]
[1752829675079,0.001,118690.0,118680.0,1.70465699]
[1752829675582,0.001,118690.0,118680.0,1.70665699]
[1752829676808,0.001,118690.0,118680.0,1.71044352]
[1752829677233,0.001,118690.0,118680.0,1.70665699]
[1752829677447,0.001,118690.0,118680.0,1.71044352]
[1752829677828,0.20228,118720.0,118710.0,0.1937486]
[1752829678051,0.33608,118720.0,118710.0,1.10734357]
[1752829678422,0.33608,118720.0,118710.0,1.10992357]
[1752829679616,0.33808,118720.0,118710.0,1.10992357]
[1752829680002,0.33808,118720.0,118710.0,1.13473753]
[1752829681076,0.33808,118720.0,118710.0,1.14314196]
[1752829681703,0.33908,118720.0,118710.0,1.14314196]
[1752829681907,0.20528,118720.0,118710.0,1.14314196]
[1752829682075,0.33888,118720.0,118710.0,1.14314196]
[1752829682526,0.33588,118720.0,118710.0,1.14314196]
[1752829682738,0.33588,118720.0,118710.0,1.14414196]
[1752829685157,0.33368,118720.0,118710.0,1.14414196]
[1752829685524,0.33368,118720.0,118710.0,0.67661696]
[1752829685734,0.40065,118720.0,118710.0,1.12050227]
[1752829685942,0.40065,118720.0,118710.0,0.65555727]
[1752829686164,0.40065,118720.0,118710.0,1.11842227]
[1752829686374,0.40907254,118720.0,118710.0,1.11842227]
[1752829686587,0.58595876,118720.0,118710.0,1.11842227]
[1752829686769,0.41749515,118720.0,118710.0,1.11842227]
[1752829686978,0.59438151,118720.0,118710.0,1.11842227]
[1752829687211,0.59438151,118720.0,118710.0,1.16783629]
[1752829687859,0.40907254,118720.0,118710.0,1.16783629]
[1752829688352,0.40065,118720.0,118710.0,1.11842227]
[1752829689284,0.40907261,118720.0,118710.0,1.11842227]
[1752829689406,0.40065,118720.0,118710.0,1.11842227]
[1752829689610,0.40879268,118720.0,118710.0,1.11842227]
[1752829689818,0.58567911,118720.0,118710.0,1.11842227]
[1752829690019,0.58567911,118720.0,118710.0,0.65347727]
[1752829690384,0.64363838,118720.0,118710.0,0.45132424]
[1752829690609,0.63521563,118720.0,118710.0,0.11132424]
[1752829690818,0.62679267,118720.0,118710.0,0.11132424]
[1752829690977,1.09173767,118720.0,118710.0,0.001]
[1752829691184,0.95841767,118720.0,118710.0,0.001]
[1752829691389,0.49347267,118720.0,118710.0,0.001]
[1752829691554,0.62703267,118720.0,118710.0,0.001]
[1752829691778,0.71279229,118720.0,118710.0,0.001]
[1752829691985,0.62703267,118720.0,118710.0,0.001]
[1752829692184,1.09197767,118720.0,118710.0,0.001]
[1752829692949,1.10055807,118720.0,118710.0,0.001]
[1752829693151,0.23487656,118700.0,118690.0,0.02564618]
[1752829693386,0.30681678,118690.0,118680.0,0.5253722]
[1752829693588,0.30887671,118690.0,118680.0,1.08425321]
[1752829693816,0.32031201,118690.0,118680.0,1.07582755]
[1752829694018,0.30346162,118690.0,118680.0,1.09267908]
[1752829694219,0.30346162,118690.0,118680.0,1.1784387]
[1752829694423,0.30346162,118690.0,118680.0,1.08425335]
[1752829694424,0.32031159,118690.0,118680.0,1.08425335]
[1752829694646,0.32873682,118690.0,118680.0,1.07582755]
[1752829694849,0.32031215,118690.0,118680.0,1.07582762]
[1752829695457,0.32873745,118690.0,118680.0,1.08525349]
[1752829695692,0.32873745,118690.0,118680.0,1.07682762]
[1752829696104,0.32031257,118690.0,118680.0,0.89145528]
[1752829696324,0.3034626,118690.0,118680.0,0.08651028]
[1752829696534,0.3034626,118690.0,118680.0,0.001]
[1752829698445,0.3044626,118690.0,118680.0,0.005]
[1752829698667,0.3044626,118690.0,118680.0,0.001]
[1752829699114,0.3044626,118690.0,118680.0,0.002]
[1752829699554,0.7694076,118690.0,118680.0,0.002]
[1752829699759,0.7694076,118690.0,118680.0,0.001]
[1752829699963,0.7704076,118690.0,118680.0,0.001]
[1752829700175,0.3054626,118690.0,118680.0,0.001]
[1752829701456,0.4392226,118690.0,118680.0,0.001]
[1752829702430,0.21915588,118690.0,118680.0,1.21226786]
[1752829702673,0.05153588,118690.0,118680.0,1.31937314]
[1752829702912,0.18533588,118690.0,118680.0,1.29802748]
[1752829703412,0.18533588,118690.0,118680.0,1.63802748]
[1752829703614,0.1358,118690.0,118680.0,1.63802748]
[1752829703848,0.002,118690.0,118680.0,1.63802748]
[1752829704052,0.1358,118690.0,118680.0,1.64060748]
[1752829704268,0.002,118690.0,118680.0,1.70230748]
[1752829704481,0.1358,118690.0,118680.0,1.70230748]
[1752829704888,0.002,118690.0,118680.0,1.70230748]
[1752829705140,0.13576,118690.0,118680.0,1.70230748]
[1752829705387,0.001,118690.0,118680.0,1.70130748]
[1752829705622,0.13572,118690.0,118680.0,1.70306556]
[1752829705852,0.13572,118690.0,118680.0,1.70063023]
[1752829706275,0.13472,118690.0,118680.0,1.70063023]
[1752829706761,0.13472,118690.0,118680.0,1.70163023]
[1752829708383,0.13472,118690.0,118680.0,0.77174023]
[1752829708608,0.13472,118690.0,118680.0,1.67043023]
[1752829710057,0.001,118690.0,118680.0,1.70133023]
[1752829710289,0.13472,118690.0,118680.0,1.70133023]
[1752829710516,0.001,118690.0,118680.0,1.70133023]
[1752829710751,0.001,118690.0,118680.0,1.83545023]
[1752829710990,0.13412,118700.0,118690.0,0.19378125]
[1752829711222,0.13412,118700.0,118690.0,1.19972055]
[1752829711454,0.13412,118700.0,118690.0,1.20230055]
[1752829713267,0.13412,118700.0,118690.0,1.20430055]
[1752829713751,0.20008,118720.0,118710.0,0.5337486]
[1752829713971,0.38366034,118720.0,118710.0,1.08627388]
[1752829714232,0.33412446,118720.0,118710.0,1.1720335]
[1752829714940,0.38366034,118720.0,118710.0,1.1720335]
[1752829715161,0.33412446,118720.0,118710.0,1.1720335]
[1752829715391,0.38366034,118720.0,118710.0,1.18024349]
[1752829715592,0.33412446,118720.0,118710.0,1.18024349]
[1752829715851,0.38665034,118720.0,118710.0,1.18024349]
[1752829716051,0.45302034,118720.0,118710.0,1.18024349]
[1752829716771,0.40348446,118720.0,118710.0,1.18024349]
[1752829716997,0.45302034,118720.0,118710.0,1.18024349]
[1752829717685,0.40348446,118720.0,118710.0,1.18024349]
[1752829717910,0.45302034,118720.0,118710.0,1.18024349]
[1752829719363,0.31906034,118720.0,118710.0,1.18024349]
[1752829719571,0.45314034,118720.0,118710.0,1.18024349]
[1752829719999,8.446e-05,118720.0,118710.0,1.68016849]
[1752829720202,8.446e-05,118720.0,118710.0,1.71306849]
[1752829720401,0.13416446,118720.0,118710.0,1.71306849]
[1752829721225,8.446e-05,118720.0,118710.0,1.71306849]
[1752829721437,0.13412446,118720.0,118710.0,1.71306849]
[1752829721643,0.13408446,118720.0,118710.0,1.71306849]
[1752829722174,0.13408446,118720.0,118710.0,1.71406849]
[1752829722611,0.13408446,118720.0,118710.0,1.71306849]
[1752829722812,0.13408446,118720.0,118710.0,1.71606849]
[1752829723023,0.13396446,118720.0,118710.0,1.71606849]
[1752829723639,0.13396446,118720.0,118710.0,1.71706849]
[1752829725585,0.13396446,118720.0,118710.0,1.68416849]
[1752829725795,0.13396446,118720.0,118710.0,1.18682349]
[1752829726019,0.13396446,118720.0,118710.0,1.18424349]
[1752829728436,0.16446446,118720.0,118710.0,1.18424349]
[1752829729212,0.13396446,118720.0,118710.0,1.18424349]
[1752829730835,0.13396446,118720.0,118710.0,1.18682349]
[1752829731014,0.13388446,118720.0,118710.0,1.18682349]
[1752829731406,0.13388446,118720.0,118710.0,1.65176849]
[1752829732184,0.13388446,118720.0,118710.0,1.18682349]
[1752829732393,8.446e-05,118720.0,118710.0,1.18682349]
[1752829732642,0.13388446,118720.0,118710.0,1.71466849]
[1752829732879,0.13388446,118720.0,118710.0,1.68336849]
[1752829733397,8.446e-05,118720.0,118710.0,1.68336849]
[1752829733831,0.13384446,118720.0,118710.0,1.68336849]
[1752829734050,8.446e-05,118720.0,118710.0,1.68336849]
[1752829734268,0.13380446,118720.0,118710.0,1.68336849]
[1752829734681,8.446e-05,118720.0,118710.0,1.68336849]
[1752829734886,0.13372446,118720.0,118710.0,1.68336849]
[1752829735636,0.003,118730.0,118720.0,0.53373228]
[1752829735860,0.07105,118750.0,118740.0,0.19369965]
[1752829736070,0.20473446,118750.0,118740.0,1.08619493]
[1752829736424,0.25628034,118750.0,118740.0,1.08619493]
[1752829736651,0.25628034,118750.0,118740.0,1.17195455]
[1752829737075,0.07314446,118750.0,118740.0,1.17195455]
[1752829737284,0.25632034,118750.0,118740.0,1.17195455]
[1752829737925,0.20678446,118750.0,118740.0,1.17195455]
[1752829738751,0.12268034,118750.0,118740.0,1.17195455]
[1752829738926,0.25632034,118750.0,118740.0,1.17195455]
[1752829739123,0.25932034,118750.0,118740.0,1.17195455]
[1752829739510,0.20778446,118750.0,118740.0,1.17195455]
[1752829739831,0.25624034,118750.0,118740.0,1.17195455]
[1752829740051,0.25624034,118750.0,118740.0,1.19772877]
[1752829740249,0.25624034,118750.0,118740.0,0.73074377]
[1752829740458,0.25624034,118750.0,118740.0,1.10992915]
[1752829740661,0.27308151,118750.0,118740.0,0.64498415]
[1752829740866,0.28150227,118750.0,118740.0,1.10992915]
[1752829741042,0.28992318,118750.0,118740.0,1.10992915]
[1752829741241,0.45834423,118750.0,118740.0,0.63656289]
[1752829741446,0.44992368,118750.0,118740.0,0.63656289]
[1752829741668,0.44992368,118750.0,118740.0,0.61078867]
[1752829741879,0.07884436,118730.0,118720.0,0.65025404]
[1752829742070,0.27532207,118730.0,118720.0,0.27924228]
[1752829742337,0.27532165,118730.0,118720.0,0.27924228]
[1752829742517,0.27532158,118730.0,118720.0,0.74418728]
[1752829742709,0.25847771,118730.0,118720.0,0.74418728]
[1752829742878,0.25847778,118730.0,118720.0,0.3650019]
[1752829743082,0.25005588,118730.0,118720.0,0.8299469]
[1752829743296,0.25847771,118730.0,118720.0,0.8309469]
[1752829743513,0.25005588,118730.0,118720.0,0.8309469]
[1752829743726,0.25847771,118730.0,118720.0,0.8309469]
[1752829743944,0.25005588,118730.0,118720.0,0.8309469]
[1752829744157,0.25847771,118730.0,118720.0,0.8309469]
[1752829744364,0.25021588,118730.0,118720.0,0.8309469]
[1752829744580,0.21333588,118730.0,118720.0,1.2979319]
[1752829745038,0.1638,118730.0,118720.0,1.2979319]
[1752829745223,0.25039588,118730.0,118720.0,0.8329869]
[1752829745637,0.21333588,118730.0,118720.0,1.2979319]
[1752829746281,0.07953588,118730.0,118720.0,1.2979319]
[1752829746448,0.0327,118740.0,118730.0,0.53371597]
[1752829746652,0.16638,118740.0,118730.0,1.13562527]
[1752829746865,0.21591588,118740.0,118730.0,1.13562527]
[1752829747802,0.16638,118740.0,118730.0,1.13562527]
[1752829748238,0.16638,118740.0,118730.0,0.67068027]
[1752829748465,0.21591588,118740.0,118730.0,1.13562527]
[1752829748694,0.0327,118740.0,118730.0,1.13562527]
[1752829748950,0.03683446,118750.0,118740.0,0.53369965]
[1752829749171,0.17043446,118750.0,118740.0,1.17195455]
[1752829749389,0.17244446,118750.0,118740.0,0.70700955]
[1752829749595,0.12118034,118750.0,118740.0,1.17195455]
[1752829749803,0.25482034,118750.0,118740.0,1.17195455]
[1752829750016,0.12118034,118750.0,118740.0,1.17195455]
[1752829750227,0.25482034,118750.0,118740.0,1.17195455]
[1752829750654,0.03589446,118750.0,118740.0,0.70700955]
[1752829750886,0.16752446,118750.0,118740.0,1.17195455]
[1752829751090,0.14348281,118760.0,118750.0,0.53368334]
[1752829751091,0.09099693,118760.0,118750.0,0.53368334]
[1752829751302,0.134,118760.0,118750.0,1.13559264]
[1752829751895,0.0004,118760.0,118750.0,1.13559264]
[1752829752111,0.134,118760.0,118750.0,1.13559264]
[1752829752568,0.13496,118760.0,118750.0,1.13559264]
[1752829753028,0.18349588,118760.0,118750.0,1.13559264]
[1752829753235,0.13396,118760.0,118750.0,1.13559264]
[1752829753448,0.18349588,118760.0,118750.0,1.13559264]
[1752829754338,0.18845588,118760.0,118750.0,0.66860764]
[1752829754554,0.25075588,118760.0,118750.0,1.08413862]
[1752829756247,0.11719588,118760.0,118750.0,1.08413862]
[1752829756436,0.25087588,118760.0,118750.0,1.08413862]
[1752829757442,0.20134,118760.0,118750.0,1.08413862]
[1752829757669,0.25087588,118760.0,118750.0,1.16989824]
[1752829758372,0.11519588,118760.0,118750.0,1.17193824]
[1752829758607,0.24875588,118760.0,118750.0,1.17193824]
[1752829758845,0.0004,118780.0,118770.0,0.53365073]
[1752829758846,1e-08,118780.0,118770.0,0.53365073]
[1752829759077,1e-08,118780.0,118770.0,1.13556003]
[1752829759078,0.13356001,118780.0,118770.0,1.13556003]
[1752829759298,0.13356001,118780.0,118770.0,1.16556003]
[1752829759518,1e-08,118780.0,118770.0,1.16873003]
[1752829759752,0.13360001,118780.0,118770.0,1.16873003]
[1752829760184,1e-08,118780.0,118770.0,1.16873003]
[1752829760399,0.13356001,118780.0,118770.0,1.16873003]
[1752829760836,0.13356001,118780.0,118770.0,1.17693312]
[1752829761105,0.13356001,118780.0,118770.0,1.16496743]
[1752829761578,0.13356001,118780.0,118770.0,1.16896743]
[1752829762256,0.2056,118790.0,118780.0,0.19363442]
[1752829762257,0.0034,118790.0,118780.0,0.19363442]
[1752829762471,0.13746112,118790.0,118780.0,0.81788363]
[1752829762690,0.13746112,118790.0,118780.0,0.84549445]
[1752829762910,0.13746112,118790.0,118780.0,0.82298363]
[1752829763994,0.13738112,118790.0,118780.0,0.82298363]
[1752829764684,0.13738112,118790.0,118780.0,0.82398363]
[1752829764905,0.00390112,118790.0,118780.0,0.85548363]
[1752829765115,0.00390112,118790.0,118780.0,0.82398363]
[1752829765116,0.13734112,118790.0,118780.0,0.82398363]
[1752829768218,0.13734112,118790.0,118780.0,0.82084363]
[1752829768862,0.13941112,118790.0,118780.0,0.73508401]
[1752829769083,0.20467112,118790.0,118780.0,0.73312401]
[1752829769746,0.17257112,118790.0,118780.0,0.73508401]
[1752829770821,0.13941112,118790.0,118780.0,0.73508401]
[1752829771020,0.13734112,118790.0,118780.0,0.73508401]
[1752829771233,0.13734112,118790.0,118780.0,0.82084363]
[1752829771929,0.13718112,118790.0,118780.0,1.16398363]
[1752829772934,0.13718112,118790.0,118780.0,0.71100432]
[1752829773172,0.13518112,118790.0,118780.0,1.16398363]
[1752829773368,0.13518112,118790.0,118780.0,1.16084363]
[1752829775150,0.13518112,118790.0,118780.0,1.18596666]
[1752829775976,0.20321112,118790.0,118780.0,1.18596666]
[1752829776176,0.06993112,118790.0,118780.0,1.18596666]
[1752829776390,0.20321112,118790.0,118780.0,1.10020704]
[1752829776801,0.20321112,118790.0,118780.0,0.64722773]
[1752829777026,0.20321112,118790.0,118780.0,1.09824704]
[1752829777450,0.20321112,118790.0,118780.0,1.10020704]
[1752829778134,0.20025112,118790.0,118780.0,1.10020704]
[1752829778372,0.20025112,118790.0,118780.0,1.18596666]
[1752829778575,0.20321112,118790.0,118780.0,1.10020704]
[1752829778926,0.20321112,118790.0,118780.0,1.09824704]
[1752829779134,0.20321112,118790.0,118780.0,0.64526773]
[1752829779595,0.21162869,118790.0,118780.0,0.30526773]
[1752829780200,0.20321112,118790.0,118780.0,0.30526773]
[1752829780837,0.20321112,118790.0,118780.0,0.2801447]
[1752829781713,0.21162877,118790.0,118780.0,0.2801447]
[1752829781921,0.21162877,118790.0,118780.0,0.2791447]
[1752829782134,0.21162869,118790.0,118780.0,0.2791447]
[1752829782759,0.20321112,118790.0,118780.0,0.2791447]
[1752829782898,0.21162877,118790.0,118780.0,0.74315497]
[1752829783122,0.20321112,118790.0,118780.0,0.74315497]
[1752829784210,0.20321112,118790.0,118780.0,0.2791447]
[1752829784420,0.20321112,118790.0,118780.0,0.74315497]
[1752829784839,0.20321112,118790.0,118780.0,0.2791447]
[1752829785053,0.20321112,118790.0,118780.0,0.74315497]
[1752829789030,0.20321112,118790.0,118780.0,0.2791447]
[1752829789796,0.20321112,118790.0,118780.0,0.74315497]
[1752829791620,0.2284647,118790.0,118780.0,0.16837851]
[1752829791846,0.22004663,118790.0,118780.0,0.19363435]
[1752829792045,0.22846463,118790.0,118780.0,0.1936345]
[1752829792255,0.23688277,118790.0,118780.0,0.185216]
[1752829792467,0.23688277,118790.0,118780.0,0.18521593]
[1752829792679,0.22004663,118790.0,118780.0,0.20205292]
[1752829792926,0.07834877,118790.0,118780.0,0.20205292]
[1752829793106,0.21980656,118790.0,118780.0,0.20205292]
[1752829793577,0.23022449,118790.0,118780.0,0.21047142]
[1752829793790,0.22180656,118790.0,118780.0,0.21047142]
[1752829794687,0.22280656,118790.0,118780.0,0.21047142]
[1752829794905,0.23122449,118790.0,118780.0,0.1936345]
[1752829795122,0.22280656,118790.0,118780.0,0.202053]
[1752829795352,0.23122449,118790.0,118780.0,0.202053]
[1752829795777,0.22280656,118790.0,118780.0,0.21047142]
[1752829796111,0.23122449,118790.0,118780.0,0.202053]
[1752829796304,0.23122442,118790.0,118780.0,0.21047142]
[1752829796731,0.23964242,118790.0,118780.0,0.202053]
[1752829796891,0.23122442,118790.0,118780.0,0.21047142]
[1752829797108,0.22280656,118790.0,118780.0,0.21047142]
[1752829797312,0.22280656,118790.0,118780.0,0.1936345]
[1752829797518,0.23122449,118790.0,118780.0,0.202053]
[1752829797867,0.09818449,118790.0,118780.0,0.1936345]
[1752829798060,0.09818449,118790.0,118780.0,0.18521593]
[1752829798061,0.23964249,118790.0,118780.0,0.18521593]
[1752829798270,0.10660249,118790.0,118780.0,0.18521593]
[1752829798549,0.23122449,118790.0,118780.0,0.19363443]
[1752829798786,0.2395402,118790.0,118780.0,0.20205285]
[1752829799024,0.1065002,118790.0,118780.0,0.20205285]
[1752829799255,0.23112234,118790.0,118780.0,0.20205285]
[1752829799472,0.2395402,118790.0,118780.0,0.20205285]
[1752829799688,0.23112234,118790.0,118780.0,0.20205285]
[1752829799910,0.23954027,118790.0,118780.0,0.20205285]
[1752829800124,0.23954027,118790.0,118780.0,0.18521593]
[1752829800324,0.23954027,118790.0,118780.0,0.20205292]
[1752829800558,0.23954027,118790.0,118780.0,0.202053]
[1752829800758,0.22280656,118790.0,118780.0,0.21047142]
[1752829800980,0.21438877,118790.0,118780.0,0.21047142]
[1752829801399,0.22280656,118790.0,118780.0,0.21047142]
[1752829801830,0.23122449,118790.0,118780.0,0.1936345]
[1752829802053,0.22280656,118790.0,118780.0,0.21047142]
[1752829802285,0.21438877,118790.0,118780.0,0.21047142]
[1752829802501,0.23122435,118790.0,118780.0,0.21047142]
[1752829802852,0.23122435,118790.0,118780.0,0.202053]
[1752829803053,0.23122435,118790.0,118780.0,0.21047142]
[1752829803265,0.22280649,118790.0,118780.0,0.21047142]
[1752829804021,0.21438877,118790.0,118780.0,0.21047142]
[1752829804251,0.07293112,118790.0,118780.0,0.67448169]
[1752829804461,0.20601112,118790.0,118780.0,0.75876913]
[1752829805111,0.20601112,118790.0,118780.0,0.67448169]
[1752829805331,0.07293112,118790.0,118780.0,0.67448169]
[1752829805532,0.13798112,118790.0,118780.0,0.76204197]
[1752829805733,0.00490112,118790.0,118780.0,0.76512197]
[1752829805942,0.00490112,118790.0,118780.0,0.88368159]
[1752829806181,0.13798112,118790.0,118780.0,0.91448159]
[1752829806607,0.00490112,118790.0,118780.0,0.91448159]
[1752829806816,0.13802112,118790.0,118780.0,0.91448159]
[1752829807006,0.00390112,118790.0,118780.0,0.91448159]
[1752829807239,0.13498112,118790.0,118780.0,0.91448159]
[1752829807663,0.00190112,118790.0,118780.0,0.91448159]
[1752829807893,0.13494112,118790.0,118780.0,0.91448159]
[1752829808092,0.00190112,118790.0,118780.0,0.91448159]
[1752829808299,0.13494112,118790.0,118780.0,0.91448159]
[1752829810215,0.13494112,118790.0,118780.0,0.45047132]
[1752829810438,0.13494112,118790.0,118780.0,0.91448159]
[1752829811690,0.13494112,118790.0,118780.0,0.45047132]
[1752829811899,0.00190112,118790.0,118780.0,0.91448159]
[1752829812110,0.13494112,118790.0,118780.0,0.3011117]
[1752829812328,0.13494112,118790.0,118780.0,0.76612197]
[1752829812746,0.13494112,118790.0,118780.0,0.3021117]
[1752829812961,0.13494112,118790.0,118780.0,0.79712197]
[1752829813200,0.00190112,118790.0,118780.0,0.88288159]
[1752829813411,0.13494112,118790.0,118780.0,0.88288159]
[1752829815435,0.13494112,118790.0,118780.0,0.85188159]
[1752829816299,0.00190112,118790.0,118780.0,0.85188159]
[1752829817555,0.13490112,118790.0,118780.0,0.85188159]
[1752829819272,0.13490112,118790.0,118780.0,0.38787132]
[1752829819480,0.13490112,118790.0,118780.0,0.85188159]
[1752829820317,0.13490112,118790.0,118780.0,0.88218159]
[1752829821311,0.00190112,118790.0,118780.0,0.88218159]
[1752829821526,0.13490112,118790.0,118780.0,0.88218159]
[1752829821884,0.13490112,118790.0,118780.0,0.85188159]
[1752829823165,0.13490112,118790.0,118780.0,0.38787132]
[1752829823372,0.13490112,118790.0,118780.0,0.85188159]
[1752829824017,0.00190112,118790.0,118780.0,0.38787132]
[1752829824238,0.13490112,118790.0,118780.0,0.85188159]
[1752829824653,0.13490112,118790.0,118780.0,0.38787132]
[1752829824863,0.13490112,118790.0,118780.0,0.85188159]
[1752829827360,0.00190112,118790.0,118780.0,0.85188159]
[1752829827564,0.13490112,118790.0,118780.0,0.91338159]
[1752829828181,0.13490112,118790.0,118780.0,0.88218159]
[1752829828595,0.13490112,118790.0,118780.0,0.85188159]
[1752829829882,0.13490112,118790.0,118780.0,0.88218159]
[1752829830456,0.13490112,118790.0,118780.0,0.85188159]
[1752829830879,0.13490112,118790.0,118780.0,0.91448159]
[1752829831259,0.13490112,118790.0,118780.0,0.88378159]
[1752829831481,0.00190112,118790.0,118780.0,0.88378159]
[1752829831657,0.13490112,118790.0,118780.0,0.41977132]
[1752829831907,0.13490112,118790.0,118780.0,0.88378159]
[1752829832340,0.00190112,118790.0,118780.0,0.88378159]
[1752829832546,1e-08,118790.0,118780.0,0.91678159]
[1752829832683,0.0004,118800.0,118790.0,0.53361813]
[1752829832880,0.13355027,118800.0,118790.0,1.63233297]
[1752829833075,0.13355027,118800.0,118790.0,1.1683227]
[1752829833504,0.00055027,118800.0,118790.0,1.1683227]
[1752829833712,0.00055027,118800.0,118790.0,1.66333297]
[1752829833911,0.13636,118810.0,118800.0,0.53360182]
[1752829834126,0.13636,118810.0,118800.0,1.67006226]
[1752829834698,0.13636,118810.0,118800.0,1.20605199]
[1752829834946,0.13636,118810.0,118800.0,1.67006226]
[1752829836901,0.13636,118810.0,118800.0,1.66164525]
[1752829837112,0.13636,118810.0,118800.0,1.70046226]
[1752829837257,0.0351,118830.0,118820.0,0.19356924]
[1752829837466,0.20106,118830.0,118820.0,0.7829223]
[1752829837895,0.20106,118830.0,118820.0,0.31891203]
[1752829838095,0.20311,118830.0,118820.0,0.7829223]
[1752829838412,0.07332,118830.0,118820.0,0.7829223]
[1752829838641,0.20311,118830.0,118820.0,0.7829223]
[1752829838843,0.20728,118830.0,118820.0,0.7829223]
[1752829840798,0.13736,118830.0,118820.0,0.7829223]
[1752829841217,0.0044,118830.0,118820.0,0.7829223]
[1752829841388,0.19826,118830.0,118820.0,0.7829223]
[1752829841625,0.20031,118830.0,118820.0,0.7829223]
[1752829841930,0.20348,118830.0,118820.0,0.27907952]
[1752829842148,0.20348,118830.0,118820.0,0.74308979]
[1752829842374,0.07052,118830.0,118820.0,1.08308979]